bitfinex-derivatives/quotes_SOLF0:USTF0_20241222
["timestamp","ask_amount","ask_price","bid_price","bid_amount"]
[1734905244086,34.85209159,178.59,178.54,2.25614609]
[1734905244489,2.8025,178.55,178.54,2.25614609]
[1734905245496,2.8023,178.56,178.54,2.25614609]
[1734905245691,34.85209159,178.56,178.29,259.0]
[1734905245997,34.85209159,178.56,178.48,2.8034]
[1734905246198,4.02,178.57,178.44,38.16109159]
[1734905246391,2.8022,178.57,178.45,2.70612672]
[1734905246596,2.8022,178.57,178.46,1.03022672]
[1734905246793,4.02,178.58,178.45,1.6759]
[1734905246997,4.02,178.58,178.46,1.03010837]
[1734905247496,6.822,178.58,178.46,1.03010837]
[1734905248093,2.8023,178.57,178.46,1.03010837]
[1734905248298,4.02,178.58,178.51,2.803]
[1734905248499,2.8028,178.53,178.45,1.6759]
[1734905248794,4.02,178.58,178.47,2.8037]
[1734905248795,38.87209159,178.58,178.47,2.8037]
[1734905249399,38.87209159,178.58,178.48,2.8035]
[1734905249799,2.8028,178.54,178.48,2.8035]
[1734905250103,3.415,178.63,178.45,36.52799159]
[1734905250410,42.28709159,178.63,178.48,34.85209159]
[1734905250600,42.28709159,178.63,178.5,2.8031]
[1734905250805,2.8023,178.57,178.47,4.02]
[1734905251105,4.02,178.57,178.5,2.8031]
[1734905251608,2.8025,178.55,178.5,2.8031]
[1734905252309,2.8021,178.58,178.47,4.02]
[1734905252508,4.02,178.59,178.48,1.03008278]
[1734905252705,4.02,178.59,178.51,2.803]
[1734905252901,4.02,178.59,178.45,1.6759]
[1734905254314,4.02,178.59,178.49,2.8033]
[1734905254704,2.8029,178.53,178.45,1.6759]
[1734905254912,4.18,178.53,178.44,3.309]
[1734905255306,2.8032,178.51,178.45,2.804]
[1734905255506,4.18,178.53,178.44,3.309]
[1734905257511,6.9828,178.53,178.44,3.309]
[1734905257911,34.85209159,178.6,178.45,35.88245466]
[1734905258110,4.18,178.59,178.45,34.85209159]
[1734905258415,4.18,178.59,178.46,1.0302339]
[1734905258809,2.8025,178.55,178.51,2.803]
[1734905260306,2.8027,178.54,178.49,2.8033]
[1734905260509,2.8027,178.54,178.47,1.6742]
[1734905261107,2.8027,178.54,178.49,2.8033]
[1734905261812,2.8027,178.54,178.51,2.8031]
[1734905262118,2.8027,178.54,178.47,1.6742]
[1734905262311,2.803,178.52,178.44,3.309]
[1734905262612,2.803,178.52,178.35,5.6113]
[1734905262613,34.85209159,178.52,178.39,1.6125]
[1734905263014,39.87639159,178.52,178.39,1.6125]
[1734905263214,2.8041,178.45,178.4,2.8047]
[1734905263908,2.8041,178.45,178.41,2.8046]
[1734905264317,2.8039,178.46,178.39,1.6125]
[1734905264819,4.18,178.47,178.39,1.6125]
[1734905265115,4.18,178.47,178.24,229.33116509]
[1734905265116,34.85209159,178.46,178.3,38.30079159]
[1734905265321,2.8046,178.42,178.35,2.8056]
[1734905265519,4.18,178.41,178.3,3.4487]
[1734905265718,34.85209159,178.37,178.31,1.03096315]
[1734905265917,34.85209159,178.37,178.29,91.73246603]
[1734905266318,2.8064,178.3,178.29,91.73246603]
[1734905266518,4.5,178.32,178.26,91.73246603]
[1734905267018,2.8065,178.3,178.26,91.73246603]
[1734905267217,4.5,178.32,178.26,91.73246603]
[1734905267418,2.8067,178.28,178.26,91.73246603]
[1734905267626,34.85209159,178.31,178.26,89.08766603]
[1734905267931,34.85209159,178.27,178.26,79.05637212]
[1734905268120,1.6276,178.4,178.26,79.05637212]
[1734905268323,34.85209159,178.33,178.22,3.3626]
[1734905268625,2.8066,178.29,178.22,3.3626]
[1734905268923,4.52,178.32,178.22,3.3626]
[1734905269725,2.8066,178.29,178.22,3.3626]
[1734905269924,4.52,178.35,178.26,2.807]
[1734905270122,4.52,178.35,178.22,3.3626]
[1734905270325,2.806,178.33,178.22,3.3626]
[1734905270523,39.37209159,178.35,178.22,3.3626]
[1734905271029,2.8066,178.29,178.23,2.8075]
[1734905271524,2.8068,178.28,178.22,6.1703]
[1734905271720,4.52,178.29,178.22,3.3626]
[1734905272020,39.37209159,178.29,178.2,1.7175]
[1734905272221,2.8077,178.22,178.16,3.3702]
[1734905272422,4.52,178.21,178.14,0.30221]
[1734905272823,4.52,178.25,178.14,0.30221]
[1734905273831,2.8082,178.19,178.14,0.30221]
[1734905274229,4.52,178.25,178.14,0.30221]
[1734905274426,2.808,178.21,178.14,3.11101]
[1734905274627,4.52,178.25,178.14,0.30221]
[1734905275025,4.52,178.25,178.14,3.11101]
[1734905275432,2.8079,178.21,178.14,3.11101]
[1734905276133,2.808,178.2,178.14,3.11101]
[1734905276630,4.52,178.25,178.14,0.30221]
[1734905277228,34.85209159,178.23,178.14,0.30221]
[1734905277828,2.8083,178.19,178.14,0.30221]
[1734905278025,34.85209159,178.17,178.14,0.30221]
[1734905278228,4.52,178.16,178.14,0.30221]
[1734905278528,2.8088,178.15,178.14,0.30221]
[1734905279628,34.85209159,178.2,178.14,0.30221]
[1734905279832,4.52,178.19,178.14,0.30221]
[1734905280230,7.3283,178.19,178.14,0.30221]
[1734905280426,4.52,178.19,178.14,0.30221]
[1734905281732,34.85209159,178.2,178.14,0.30221]
[1734905281928,4.52,178.19,178.14,0.30221]
[1734905282732,2.8088,178.15,178.14,0.30221]
[1734905283036,37.66089159,178.15,178.14,0.30221]
[1734905283433,2.8101,178.07,178.03,5.0977]
[1734905283629,2.8101,178.07,178.02,2.8108]
[1734905283829,4.52,178.09,177.98,3.2601]
[1734905284137,7.3299,178.09,178.04,2.8105]
[1734905284449,4.52,178.09,178.0,34.85209159]
[1734905284631,7.3299,178.09,178.03,2.8106]
[1734905284831,2.8099,178.09,178.0,34.85209159]
[1734905285132,34.85209159,178.12,177.98,4.8711]
[1734905285337,2.8102,178.07,177.98,4.8711]
[1734905285533,34.85209159,178.12,177.98,4.8711]
[1734905285927,39.37209159,178.12,177.98,4.8711]
[1734905286531,4.52,178.11,177.98,4.8711]
[1734905287031,2.8104,178.05,177.98,4.8711]
[1734905287232,4.52,178.11,177.98,4.8711]
[1734905287529,2.8102,178.07,178.02,2.8108]
[1734905287735,2.8102,178.07,177.98,4.8711]
[1734905287940,4.52,178.11,177.98,4.8711]
[1734905288131,34.85209159,178.09,177.92,34.85209159]
[1734905288635,34.85209159,178.09,177.95,34.85209159]
[1734905288834,2.8107,178.03,177.99,2.8112]
[1734905289034,34.85209159,178.09,177.99,2.8112]
[1734905289437,2.8105,178.05,177.99,2.8112]
[1734905289731,34.85209159,178.09,177.91,9.534]
[1734905289939,2.8108,178.02,177.91,39.86609159]
[1734905290138,2.8108,178.02,177.94,2.812]
[1734905290334,4.52,178.05,177.9,2.25614609]
[1734905291428,4.52,178.05,177.95,34.85209159]
[1734905291633,2.8111,178.01,177.96,4.8506]
[1734905291832,2.8111,178.01,177.96,7.6622]
[1734905292036,4.52,178.05,177.92,34.85209159]
[1734905292236,2.8107,178.03,177.93,3.2166]
[1734905292433,4.52,178.05,177.95,34.85209159]
[1734905292835,4.52,178.05,177.93,7.7366]
[1734905292836,4.52,178.05,177.96,2.8117]
[1734905293338,2.811,178.02,177.96,2.8117]
[1734905293735,4.52,178.05,177.93,7.7366]
[1734905294038,103.38192379,178.18,177.98,34.85209159]
[1734905294039,34.85209159,178.14,177.98,34.85209159]
[1734905294341,4.52,178.15,178.07,2.8102]
[1734905294640,2.8095,178.12,178.07,2.8102]
[1734905295136,2.8093,178.14,178.09,2.8098]
[1734905295641,2.8091,178.15,178.1,2.8096]
[1734905296444,2.8091,178.15,178.11,2.8096]
[1734905296837,2.8093,178.13,178.04,34.85209159]
[1734905297041,39.37209159,178.17,178.02,3.227]
[1734905297641,2.8097,178.11,178.06,2.8104]
[1734905297838,86.59192379,178.18,178.02,3.227]
[1734905298048,2.8087,178.17,178.12,2.8094]
[1734905298545,4.66,178.21,178.08,1.7608]
[1734905298745,2.8089,178.16,178.11,2.8095]
[1734905299044,4.66,178.21,178.08,1.7608]
[1734905299239,2.8086,178.18,178.08,1.7608]
[1734905299441,4.66,178.23,178.1,34.85209159]
[1734905299641,4.66,178.23,178.11,1.6827]
[1734905299847,2.8082,178.2,178.15,2.8089]
[1734905300044,4.66,178.23,178.11,3.3508]
[1734905300546,2.808,178.21,178.16,2.8088]
[1734905300740,4.66,178.23,178.13,34.85209159]
[1734905300941,4.66,178.3,178.16,34.85209159]
[1734905301146,2.807,178.28,178.22,2.8078]
[1734905301348,4.66,178.3,178.19,34.85209159]
[1734905301650,7.4666,178.3,178.23,2.8077]
[1734905302047,4.66,178.3,178.2,3.4038]
[1734905302243,4.66,178.35,178.22,34.85209159]
[1734905302447,4.66,178.35,178.25,34.85209159]
[1734905302645,4.66,178.4,178.26,1.7291]
[1734905302944,34.85209159,178.33,178.2,3.4038]
[1734905303145,34.85209159,178.38,178.15,4.66]
[1734905303146,34.85209159,178.3,178.15,4.66]
[1734905303346,4.66,178.29,178.15,2.8089]
[1734905303547,4.66,178.28,178.16,91.87555139]
[1734905303748,2.8074,178.25,178.19,2.8083]
[1734905304049,4.66,178.29,178.16,91.87555139]
[1734905304251,2.8075,178.25,178.18,2.8084]
[1734905304547,4.66,178.29,178.14,4.66]
[1734905304848,2.8077,178.23,178.17,2.8086]
[1734905305544,2.8077,178.23,178.16,2.8087]
[1734905305849,2.8077,178.23,178.14,4.66]
[1734905306144,2.8081,178.21,178.13,1.7291]
[1734905306355,34.85209159,178.26,178.13,1.7291]
[1734905306948,4.66,178.25,178.13,1.7291]
[1734905307151,2.8082,178.2,178.13,4.5382]
[1734905307345,4.66,178.25,178.13,1.7291]
[1734905308648,39.51209159,178.29,178.13,1.7291]
[1734905308851,39.51209159,178.29,178.13,36.58119159]
[1734905309450,2.8076,178.24,178.13,36.58119159]
[1734905310751,2.8076,178.24,178.14,1.03209846]
[1734905310951,39.51209159,178.29,178.14,5.69209846]
[1734905310952,4.66,178.29,178.14,5.69209846]
[1734905311153,4.66,178.29,178.15,1.03201301]
[1734905311353,4.66,178.31,178.16,34.85209159]
[1734905311748,2.8069,178.28,178.17,4.66]
[1734905312050,29.49049909,178.5,178.25,34.85209159]
[1734905312250,34.85209159,178.45,178.28,34.85209159]
[1734905312442,34.85209159,178.45,178.29,1.6314]
[1734905312647,34.85209159,178.45,178.3,4.66]
[1734905312954,34.85209159,178.48,178.31,34.85209159]
[1734905313749,4.66,178.47,178.31,34.85209159]
[1734905314353,4.66,178.47,178.29,1.6314]
[1734905314354,34.85209159,178.42,178.29,1.6314]
[1734905314655,34.85209159,178.39,178.26,3.4041]
[1734905314954,2.8062,178.33,178.28,2.8068]
[1734905315152,34.85209159,178.39,178.26,3.4041]
[1734905315554,2.8057,178.36,178.3,2.8066]
[1734905315753,34.85209159,178.42,178.26,8.0641]
[1734905315949,4.66,178.41,178.26,8.0641]
[1734905316257,2.8059,178.35,178.26,8.0641]
[1734905316456,4.66,178.41,178.26,8.0641]
[1734905316755,2.8057,178.36,178.26,3.4041]
[1734905316951,39.51209159,178.42,178.26,3.4041]
[1734905317160,2.8055,178.38,178.28,2.8068]
[1734905317354,39.51209159,178.42,178.26,3.4041]
[1734905317852,2.8059,178.35,178.3,2.8066]
[1734905318058,34.85209159,178.42,178.27,34.85209159]
[1734905318361,4.66,178.43,178.27,34.85209159]
[1734905318855,34.85209159,178.42,178.26,3.4041]
[1734905319062,34.85209159,178.42,178.23,1.6901]
[1734905319063,2.807,178.28,178.23,1.6901]
[1734905319253,4.66,178.34,178.23,1.6901]
[1734905319459,4.66,178.34,178.24,3.3156]
[1734905319659,2.8064,178.31,178.26,2.8072]
[1734905320076,4.66,178.34,178.24,3.3156]
[1734905320353,4.66,178.34,178.27,2.8071]
[1734905320559,4.66,178.34,178.24,3.3156]
[1734905320750,34.85209159,178.39,178.24,3.3156]
[1734905320950,4.66,178.38,178.24,3.3156]
[1734905321160,2.8074,178.25,178.24,3.3156]
[1734905321361,34.85209159,178.33,178.2,2.8082]
[1734905321564,4.66,178.32,178.2,2.8082]
[1734905321760,4.66,178.32,178.19,34.85209159]
[1734905321964,4.66,178.32,178.21,2.808]
[1734905322163,2.8072,178.27,178.19,34.85209159]
[1734905322359,4.66,178.32,178.19,34.85209159]
[1734905322555,4.66,178.32,178.22,2.8078]
[1734905323065,4.66,178.32,178.21,2.808]
[1734905323265,4.66,178.32,178.19,34.85209159]
[1734905323567,2.8073,178.26,178.21,2.808]
[1734905324760,4.66,178.34,178.21,3.3934]
[1734905327358,34.85209159,178.31,178.16,34.85209159]
[1734905327564,34.85209159,178.31,178.13,39.37209159]
[1734905327962,2.8081,178.21,178.13,39.37209159]
[1734905328669,2.8083,178.2,178.13,34.85209159]
[1734905329464,2.8083,178.2,178.12,7.9234]
[1734905330363,2.8083,178.2,178.12,3.4034]
[1734905330569,2.8083,178.2,178.15,2.8089]
[1734905330872,2.8088,178.16,178.12,3.4034]
[1734905331363,34.85209159,178.19,178.08,1.6205]
[1734905331571,34.85209159,178.13,178.04,1.6409]
[1734905331767,4.52,178.12,178.02,91.87555139]
[1734905332572,2.8098,178.1,178.02,91.87555139]
[1734905332761,2.8098,178.1,177.99,34.85209159]
[1734905333170,2.8101,178.09,177.99,34.85209159]
[1734905333969,4.52,178.12,177.99,34.85209159]
[1734905334663,4.52,178.12,177.98,4.979]
[1734905335665,2.8105,178.06,178.0,2.8113]
[1734905336373,4.52,178.12,178.0,2.8113]
[1734905336574,4.52,178.12,177.98,4.979]
[1734905336773,4.52,178.12,177.99,34.85209159]
[1734905337374,34.85209159,178.2,178.0,4.52]
[1734905337673,4.52,178.19,178.05,2.8104]
[1734905337973,4.52,178.19,178.0,4.52]
[1734905338168,4.52,178.19,178.02,34.85209159]
[1734905338873,2.8091,178.14,178.09,2.8099]
[1734905339471,2.8089,178.16,178.05,34.85209159]
[1734905339776,4.52,178.18,178.06,1.6804]
[1734905339980,4.52,178.18,178.07,2.8101]
[1734905339981,34.85209159,178.16,178.07,2.8101]
[1734905340474,2.8095,178.12,178.07,2.8101]
[1734905340671,34.85209159,178.16,178.06,1.6804]
[1734905340874,4.52,178.18,178.09,2.8099]
[1734905341074,2.8092,178.14,178.09,2.8099]
[1734905341479,4.52,178.18,178.07,3.211]
[1734905341670,2.8093,178.13,178.08,2.81]
[1734905341868,4.52,178.18,178.07,3.211]
[1734905342069,4.52,178.18,178.0,4.52]
[1734905342070,34.85209159,178.13,178.01,2.8111]
[1734905342274,34.85209159,178.1,177.97,3.4411]
[1734905342476,4.52,178.09,177.97,3.4411]
[1734905342677,2.8111,178.02,177.98,2.8116]
[1734905342977,4.52,178.09,177.97,3.4411]
[1734905343287,4.52,178.08,177.97,3.4411]
[1734905343481,34.85209159,178.07,177.97,3.4411]
[1734905343687,34.85209159,178.07,177.97,1.754]
[1734905343885,34.85209159,178.04,177.95,1.5925]
[1734905344091,34.85209159,178.04,177.92,1.6871]
[1734905344384,34.85209159,178.01,177.91,1.754]
[1734905344586,4.52,178.0,177.91,1.754]
[1734905345288,2.8121,177.95,177.91,1.754]
[1734905346188,2.8121,177.95,177.9,2.25614609]
[1734905346583,2.8121,177.95,177.9,5.06904609]
[1734905347586,2.8123,177.94,177.9,2.25614609]
[1734905348091,39.37209159,178.1,177.93,34.85209159]
[1734905348285,93.27209159,178.13,177.99,34.85209159]
[1734905348584,4.52,178.12,178.0,1.7275]
[1734905348779,2.8099,178.1,178.0,1.7275]
[1734905348979,4.52,178.15,178.02,34.85209159]
[1734905349191,4.52,178.15,178.03,3.2744]
[1734905349390,2.8096,178.12,178.07,2.8101]
[1734905349787,4.52,178.15,178.03,3.2744]
[1734905350286,4.52,178.15,178.03,1.6737]
[1734905350494,2.8096,178.12,178.06,2.8103]
[1734905350989,4.52,178.15,178.06,2.8103]
[1734905351186,58.46,178.26,178.03,1.6737]
[1734905351387,58.46,178.26,178.05,34.85209159]
[1734905351598,2.809,178.15,178.08,34.85209159]
[1734905351783,4.52,178.19,178.08,34.85209159]
[1734905352387,2.8087,178.17,178.08,34.85209159]
[1734905352585,4.52,178.22,178.11,34.85209159]
[1734905352785,4.52,178.23,178.12,4.9163]
[1734905353194,39.37209159,178.23,178.12,3.2591]
[1734905353589,39.37209159,178.23,178.12,6.0685]
[1734905353790,2.8086,178.18,178.12,6.0685]
[1734905353992,39.37209159,178.23,178.12,3.2591]
[1734905354187,39.37209159,178.23,178.13,2.8092]
[1734905354597,4.52,178.25,178.18,2.8085]
[1734905354986,2.8074,178.25,178.14,34.85209159]
[1734905355194,4.52,178.29,178.21,2.808]
[1734905355492,4.52,178.29,178.17,34.85209159]
[1734905355685,4.34,178.29,178.21,2.808]
[1734905355886,4.34,178.29,178.17,34.85209159]
[1734905356088,34.85209159,178.26,178.12,3.2591]
[1734905356289,34.85209159,178.23,178.12,3.2591]
[1734905356592,2.8087,178.17,178.12,3.2591]
[1734905356892,4.34,178.22,178.12,3.2591]
[1734905357290,4.34,178.22,178.12,6.0684]
[1734905357589,4.34,178.22,178.12,3.2591]
[1734905358290,4.34,178.22,178.04,34.85209159]
[1734905358499,34.85209159,178.2,178.06,2.8104]
[1734905358695,34.85209159,178.2,178.04,38.33379159]
[1734905358995,4.34,178.22,178.07,34.85209159]
[1734905359592,4.34,178.22,178.12,2.8094]
[1734905360187,34.85209159,178.23,178.08,4.34]
[1734905360395,4.34,178.23,178.15,2.8089]
[1734905360790,2.8083,178.2,178.13,2.8093]
[1734905360990,4.34,178.23,178.13,2.8093]
[1734905361290,2.8085,178.18,178.1,34.85209159]
[1734905361488,2.8085,178.18,178.08,4.34]
[1734905361489,4.34,178.23,178.08,4.34]
[1734905362190,34.85209159,178.2,178.04,38.33379159]
[1734905362395,34.85209159,178.17,178.04,3.4817]
[1734905362589,4.34,178.16,178.04,3.4817]
[1734905362991,2.8089,178.14,178.07,2.8099]
[1734905363296,4.34,178.16,178.04,38.33379159]
[1734905363497,2.8087,178.16,178.1,2.8093]
[1734905363690,39.19209159,178.2,178.05,4.34]
[1734905364594,2.8095,178.11,178.05,2.8102]
[1734905364791,4.34,178.14,178.01,34.85209159]
[1734905365000,4.34,178.14,177.99,4.34]
[1734905365300,4.34,178.14,178.01,34.85209159]
[1734905365497,4.34,178.17,178.04,34.85209159]
[1734905365697,4.34,178.17,178.05,4.34]
[1734905365897,34.85209159,178.2,178.05,4.34]
[1734905366201,4.34,178.25,178.1,34.85209159]
[1734905366403,2.8084,178.18,178.12,2.8091]
[1734905366593,2.8084,178.18,178.11,3.3761]
[1734905366594,4.34,178.25,178.11,3.3761]
[1734905366796,34.85209159,178.26,178.11,3.3761]
[1734905366998,4.34,178.25,178.15,2.8085]
[1734905367499,2.8078,178.21,178.11,7.7161]
[1734905368105,4.34,178.25,178.11,7.7161]
[1734905368304,4.34,178.25,178.17,2.8082]
[1734905368800,2.8076,178.23,178.17,2.8082]
[1734905368999,4.34,178.25,178.11,3.3761]
[1734905369204,4.34,178.25,178.06,1.7559]
[1734905369205,34.85209159,178.2,178.06,1.7559]
[1734905369399,4.34,178.19,178.06,5.0862]
[1734905369595,2.809,178.14,178.08,2.8098]
[1734905369796,4.34,178.19,178.06,5.0862]
[1734905370304,2.8088,178.14,178.06,5.0862]
[1734905370699,4.34,178.19,178.06,5.0862]
[1734905370895,34.85209159,178.17,178.06,5.0862]
[1734905372001,34.85209159,178.14,177.98,34.85209159]
[1734905372201,4.34,178.13,177.99,3.2998]
[1734905372405,4.34,178.13,178.01,2.8109]
[1734905373005,34.85209159,178.11,177.99,3.2998]
[1734905373898,2.8104,178.04,177.99,6.111]
[1734905374103,38.58228766,178.15,177.99,3.2998]
[1734905374406,4.34,178.14,177.99,3.2998]
[1734905375610,2.8102,178.06,177.99,3.2998]
[1734905375906,4.34,178.07,177.99,1.6501]
[1734905376312,2.8103,178.05,177.99,1.6501]
[1734905376509,4.34,178.07,177.99,1.6501]
[1734905377114,4.34,178.07,177.95,1.7642]
[1734905378214,2.8106,178.04,177.99,2.8111]
[1734905379016,4.34,178.08,177.95,6.1042]
[1734905379917,2.8102,178.06,177.95,6.1042]
[1734905381327,38.58228766,178.15,177.95,6.1042]
[1734905381710,38.58228766,178.23,178.0,38.58228766]
[1734905381913,4.34,178.22,178.01,5.9702]
[1734905382508,4.34,178.22,178.04,38.58228766]
[1734905382711,3.49470423,178.28,178.08,38.58228766]
[1734905383013,2.8071,178.26,178.21,2.8077]
[1734905383213,3.49470423,178.28,178.17,4.34]
[1734905384917,6.30140423,178.28,178.21,2.8076]
[1734905385113,6.30140423,178.28,178.17,4.34]
[1734905385311,3.49470423,178.28,178.17,4.34]
[1734905385513,3.49470423,178.28,178.15,1.7147]
[1734905385709,4.32,178.27,178.15,1.7147]
[1734905386714,2.8076,178.22,178.17,2.8084]
[1734905387115,4.32,178.27,178.15,1.7147]
[1734905387315,38.58228766,178.23,178.05,91.87555139]
[1734905388021,38.58228766,178.23,178.09,2.8096]
[1734905388221,38.58228766,178.23,178.04,5.0275]
[1734905388617,2.809,178.13,178.04,5.0275]
[1734905389023,2.8089,178.14,178.09,2.8096]
[1734905390025,7.1287,178.15,178.1,2.8095]
[1734905390719,2.809,178.13,178.09,2.8096]
[1734905391420,2.8089,178.14,178.09,2.8096]
[1734905394019,4.32,178.16,178.04,5.0275]
[1734905394220,39.76794955,178.16,178.04,3.3195]
[1734905394425,39.76794955,178.16,178.0,35.44794955]
[1734905394619,2.8093,178.12,178.03,2.8104]
[1734905394824,39.76794955,178.16,178.03,2.8104]
[1734905395326,2.81,178.07,178.01,2.8108]
[1734905395827,2.8101,178.06,178.01,2.8108]
[1734905396033,4.32,178.09,177.98,5.0019]
[1734905396328,4.32,178.09,178.0,35.44794955]
[1734905396529,4.32,178.09,177.98,5.0019]
[1734905396929,2.8101,178.07,178.02,2.8106]
[1734905397927,2.8101,178.07,177.98,5.0019]
[1734905398233,2.8101,178.07,178.03,2.8106]
[1734905399332,7.1297,178.09,178.04,2.8103]
[1734905399531,7.1297,178.09,177.98,5.0019]
[1734905400140,4.32,178.13,178.0,35.44794955]
[1734905400340,39.76794955,178.13,177.98,5.0019]
[1734905400639,2.8096,178.1,177.98,5.0019]
[1734905401342,2.8096,178.1,178.05,2.8102]
[1734905402032,39.76794955,178.13,177.98,5.0019]
[1734905402237,2.8094,178.11,178.06,2.81]
[1734905403041,4.32,178.13,178.0,35.44794955]
[1734905403240,4.32,178.14,178.03,35.44794955]
[1734905403536,2.8102,178.06,178.02,2.8107]
[1734905403741,4.32,178.07,178.02,2.8107]
[1734905404139,4.32,178.07,178.0,2.8111]
[1734905404544,2.8101,178.06,177.98,5.0019]
[1734905404744,2.8101,178.06,178.02,2.8107]
[1734905404945,4.32,178.07,177.98,5.0019]
[1734905405145,39.76794955,178.07,177.9,130.7768359]
[1734905405439,35.44794955,178.04,177.9,95.32888635]
[1734905405635,35.44794955,178.01,177.9,95.32888635]
[1734905405835,35.44794955,178.01,177.93,2.812]
[1734905405836,2.8115,177.98,177.93,2.812]
[1734905406146,4.32,178.0,177.9,2.25614609]
[1734905406544,2.8116,177.97,177.93,2.8122]
[1734905407044,2.8116,177.97,177.9,2.25614609]
[1734905407239,4.32,178.0,177.9,2.25614609]
[1734905407837,4.32,178.06,177.93,35.44794955]
[1734905408143,39.76794955,178.07,177.94,1.6319]
[1734905408346,2.8111,178.0,177.94,1.6319]
[1734905408841,7.1309,178.01,177.96,2.8117]
[1734905410146,4.32,178.01,177.98,2.8113]
[1734905410545,4.32,178.01,177.98,2.8114]
[1734905410737,2.8107,178.03,177.94,1.6319]
[1734905410948,4.32,178.05,177.95,3.3593]
[1734905411844,7.1303,178.05,178.0,2.8109]
[1734905412044,4.32,178.08,177.96,35.44794955]
[1734905412347,2.8106,178.04,177.95,3.3593]
[1734905412845,39.76794955,178.03,177.9,2.25614609]
[1734905413149,35.44794955,178.0,177.9,2.25614609]
[1734905413344,2.8118,177.96,177.92,2.8122]
[1734905413643,4.32,177.99,177.92,2.8122]
[1734905414042,2.8116,177.97,177.92,2.8122]
[1734905414244,2.8116,177.97,177.93,2.8121]
[1734905414741,2.812,177.95,177.91,2.8124]
[1734905415445,35.44794955,177.97,177.9,2.25614609]
[1734905416037,2.812,177.95,177.9,5.06874609]
[1734905416238,35.44794955,177.97,177.9,2.25614609]
[1734905416438,4.32,177.99,177.9,2.25614609]
[1734905416642,2.812,177.95,177.9,2.25614609]
[1734905416843,35.44794955,177.95,177.9,2.25614609]
[1734905417045,35.44794955,177.92,177.9,2.25614609]
[1734905417265,4.16,177.91,177.72,5.0656]
[1734905417446,35.44794955,177.87,177.72,5.0656]
[1734905417646,35.44794955,177.87,177.77,2.8147]
[1734905418348,35.44794955,177.84,177.77,2.8147]
[1734905418649,6.9738,177.83,177.77,2.8146]
[1734905418847,4.16,177.91,177.77,35.44794955]
[1734905419052,2.8135,177.85,177.8,2.8142]
[1734905419252,35.44794955,177.9,177.74,39.60794955]
[1734905419646,2.8131,177.87,177.81,2.814]
[1734905420047,4.16,177.91,177.74,39.60794955]
[1734905420247,35.44794955,177.9,177.79,2.8142]
[1734905420448,35.44794955,177.9,177.74,39.60794955]
[1734905420751,4.16,177.91,177.77,35.44794955]
[1734905421052,4.16,177.91,177.8,35.44794955]
[1734905421253,4.16,177.91,177.81,3.2538]
[1734905422052,4.16,177.96,177.84,35.44794955]
[1734905422450,39.60794955,177.96,177.82,1.721]
[1734905423053,38.94839947,177.99,177.82,1.721]
[1734905423348,4.16,177.98,177.84,35.44794955]
[1734905423749,2.8116,177.97,177.91,2.8123]
[1734905424557,4.16,177.98,177.87,35.44794955]
[1734905424958,4.16,178.01,177.96,2.8116]
[1734905425156,4.16,178.01,177.91,4.9683]
[1734905425953,4.16,178.01,177.87,35.44794955]
[1734905426263,35.44794955,177.96,177.84,3.2282]
[1734905426554,2.8126,177.91,177.86,2.8133]
[1734905426755,4.16,177.95,177.84,3.2282]
[1734905426952,4.16,177.95,177.84,38.67614955]